bitfinex/quotes_ETHUSD_20251206
["timestamp","ask_amount","ask_price","bid_price","bid_amount"]
[1765059390644,1.31481634,3049.6,3049.3,0.4929]
[1765059391265,4.59341369,3050.1,3049.5,0.4929]
[1765059391563,0.519,3050.0,3049.6,0.4929]
[1765059391756,0.519,3050.0,3049.6,0.9542]
[1765059391951,1.31481634,3049.9,3049.6,0.9542]
[1765059392943,0.72559411,3050.0,3049.8,0.4929]
[1765059393142,1.31481634,3049.9,3049.8,0.4929]
[1765059393862,0.72559411,3050.0,3049.8,0.4929]
[1765059394041,1.83381634,3050.1,3049.9,0.4929]
[1765059394369,1.31481634,3050.1,3050.0,0.4929]
[1765059394556,1.31481634,3050.3,3050.0,0.4929]
[1765059394759,1.31481634,3050.1,3050.0,0.4929]
[1765059395769,1.31481634,3050.1,3049.6,0.4613]
[1765059396347,1.31481634,3050.1,3049.6,3.74032741]
[1765059396873,1.31481634,3050.1,3049.6,0.4613]
[1765059397171,1.31481634,3050.1,3050.0,0.4929]
[1765059397752,4.59339737,3050.1,3050.0,0.4929]
[1765059397959,4.59339737,3050.1,3049.6,0.4613]
[1765059398156,1.31481634,3050.1,3049.6,0.4613]
[1765059398362,1.31481634,3050.1,3049.7,3.27899529]
[1765059398748,1.31481634,3050.1,3049.7,0.4613]
[1765059399377,3.27849673,3050.2,3049.7,0.4613]
[1765059399952,4.59321884,3050.3,3049.7,0.4613]
[1765059402457,5.05861884,3050.3,3049.7,0.4613]
[1765059403081,8.33702134,3050.3,3049.7,0.4613]
[1765059405158,5.05861884,3050.3,3049.7,0.4613]
[1765059405365,5.05861884,3050.3,3049.7,3.74028546]
[1765059405571,5.05861884,3050.3,3049.7,0.4613]
[1765059406284,1.31481634,3050.1,3049.7,0.4613]
[1765059407878,4.59342455,3050.1,3049.6,6.29007173]
[1765059408184,1.31481634,3050.1,3049.6,9.5691578]
[1765059408358,1.31481634,3050.1,3049.7,0.4613]
[1765059409253,4.59339916,3050.1,3049.7,0.4613]
[1765059409885,1.31481634,3050.1,3049.7,0.4613]
[1765059411797,4.59339832,3050.1,3049.7,0.4613]
[1765059412769,1.31481634,3050.1,3049.7,0.4613]
[1765059413180,4.59340434,3050.1,3049.7,0.4613]
[1765059413367,1.31681634,3050.5,3050.0,0.4719]
[1765059413368,0.002,3050.5,3050.0,0.4719]
[1765059413578,0.4539,3050.4,3049.8,0.519]
[1765059413764,0.82731136,3050.4,3049.8,6.80907173]
[1765059413966,0.4539,3050.4,3049.8,7.27637173]
[1765059414994,3.27836606,3050.3,3049.8,7.27637173]
[1765059415311,3.27836606,3050.3,3049.6,6.29007173]
[1765059415475,3.27836606,3050.3,3049.1,1.14376675]
[1765059415476,0.36,3049.7,3049.1,0.1593]
[1765059415802,0.36,3049.7,3049.1,6.44937173]
[1765059415987,0.641,3049.6,3048.7,0.4673]
[1765059416186,0.4806,3049.2,3048.9,6.29007173]
[1765059416692,0.4539,3049.5,3048.9,6.29007173]
[1765059416900,0.1871,3049.6,3049.1,6.29007173]
[1765059417076,4.59405902,3049.5,3049.1,6.29007173]
[1765059417274,4.59405902,3049.5,3049.1,6.91667173]
[1765059417575,4.59408891,3049.5,3049.1,6.91667173]
[1765059418669,1.31481634,3049.5,3049.1,6.91667173]
[1765059418868,3.27902357,3049.7,3049.4,0.4719]
[1765059419167,1.31481634,3049.6,3049.4,0.4719]
[1765059420310,2.28771634,3049.8,3049.4,0.4719]
[1765059420484,1.31481634,3049.6,3049.3,6.29007173]
[1765059420995,1.76871634,3049.6,3049.3,6.29007173]
[1765059421368,0.4806,3049.4,3049.1,6.44937173]
[1765059421809,0.9345,3049.4,3049.0,0.519]
[1765059422014,1.31481634,3049.3,3049.0,0.519]
[1765059422167,0.4806,3049.1,3048.7,6.29007173]
[1765059422491,0.4806,3049.1,3048.7,9.57015187]
[1765059422685,1.76871634,3049.3,3048.7,10.03745187]
[1765059423069,1.76871634,3049.3,3048.7,6.75737173]
[1765059423267,1.31481634,3049.1,3048.7,6.29007173]
[1765059424282,1.76871634,3049.1,3048.7,9.57012553]
[1765059424478,1.2713741,3049.1,3048.7,10.03742553]
[1765059424684,1.2713741,3049.1,3048.7,6.75737173]
[1765059425972,1.2713741,3049.1,3048.7,10.03736899]
[1765059426484,1.76871634,3049.3,3048.7,10.03736899]
[1765059426688,1.31481634,3049.3,3049.0,0.4719]
[1765059427373,4.59429363,3049.3,3049.0,0.4719]
[1765059427676,5.04819363,3049.3,3048.9,6.29007173]
[1765059428069,0.4539,3049.2,3048.9,6.29007173]
[1765059428599,1.31481634,3049.3,3048.9,6.29007173]
[1765059428799,1.76871634,3049.3,3048.9,6.29007173]
[1765059429007,5.04817521,3049.3,3048.9,6.29007173]
[1765059429199,1.76871634,3049.3,3048.9,6.29007173]
[1765059429772,1.31481634,3049.5,3048.9,6.75737173]
[1765059430100,5.04800617,3049.5,3048.9,6.75737173]
[1765059430479,0.1871,3049.9,3049.4,6.92127173]
[1765059430685,0.4539,3049.8,3049.4,6.76197173]
[1765059431075,0.1871,3049.9,3049.4,6.76197173]
[1765059431281,0.4539,3050.1,3049.6,6.29007173]
[1765059431592,0.4539,3050.1,3049.5,0.4673]
[1765059431593,0.002,3050.5,3050.2,0.4719]
[1765059431798,1.31481634,3050.4,3050.0,6.29007173]
[1765059432108,0.002,3050.5,3050.4,0.4719]
[1765059433899,1.79741634,3050.5,3050.2,6.29007173]
[1765059434094,2.25131634,3050.5,3050.2,6.29007173]
[1765059434295,0.4826,3050.5,3050.2,6.29007173]
[1765059435414,0.3673,3050.3,3049.9,3.79778391]
[1765059435613,1.77071634,3050.5,3049.9,10.08785564]
[1765059435797,5.0488702,3050.5,3049.9,7.27637173]
[1765059436685,5.0488702,3050.5,3049.9,10.55512843]
[1765059436911,5.0488702,3050.5,3049.9,7.27637173]
[1765059437420,5.0488702,3050.5,3049.9,10.03616209]
[1765059437586,1.77071634,3050.5,3049.9,10.03616209]
[1765059438196,1.31681634,3050.5,3050.1,6.29007173]
[1765059438789,0.002,3050.5,3050.1,6.29007173]
[1765059439820,1.31681634,3050.5,3050.1,6.29007173]
[1765059440028,0.4539,3050.4,3050.1,6.29007173]
[1765059440322,1.31681634,3050.5,3050.1,6.29007173]
[1765059441691,4.59502985,3050.5,3050.1,6.29007173]
[1765059441890,1.31681634,3050.5,3050.1,6.29007173]
[1765059442092,1.78911634,3050.5,3050.1,6.29007173]
[1765059442418,5.06729038,3050.5,3050.1,6.29007173]
[1765059442791,0.4759,3050.2,3049.7,6.29007173]
[1765059443131,1.31481634,3050.1,3049.7,6.29007173]
[1765059443336,1.78711634,3050.1,3049.7,6.29007173]
[1765059443637,0.4759,3049.8,3049.3,10.08847066]
[1765059443796,4.59341615,3050.1,3049.7,0.4572]
[1765059443992,0.4723,3050.0,3049.7,0.4572]
[1765059444212,0.4723,3050.0,3049.5,6.29007173]
[1765059444213,0.4759,3049.8,3049.5,6.29007173]
[1765059444805,0.4723,3050.0,3049.5,9.56929541]
[1765059445325,0.4723,3050.0,3049.5,6.29007173]
[1765059445622,1.31481634,3049.9,3049.5,6.29007173]
[1765059446021,1.83381634,3050.3,3049.3,0.519]
[1765059446022,0.002,3050.5,3049.8,13.03734346]
[1765059446201,0.002,3050.5,3049.9,0.519]
[1765059446519,0.002,3050.5,3050.4,0.4572]
[1765059446719,0.002,3050.5,3050.4,6.74727173]
[1765059446920,0.002,3050.5,3050.4,7.21577173]
[1765059447228,0.002,3050.5,3050.4,6.74727173]
[1765059452027,0.002,3050.5,3050.2,6.29007173]
[1765059452196,0.002,3050.5,3050.2,9.56846485]
[1765059453128,0.002,3050.5,3050.2,6.29007173]
[1765059453294,0.002,3050.5,3050.4,6.74727173]
[1765059453502,0.00083304,3050.7,3050.4,13.30378889]
[1765059453799,0.00083304,3050.7,3050.6,10.02531539]
[1765059454213,0.00083304,3050.7,3050.6,11.47788817]
[1765059460626,0.00083304,3050.7,3050.6,11.99688817]
[1765059464036,0.002,3051.4,3050.6,25.56864133]
[1765059464235,0.002,3051.4,3051.3,0.4572]
[1765059464922,0.002,3051.4,3051.3,0.9257]
[1765059465230,0.002,3051.4,3051.3,0.4572]
[1765059466214,0.002,3051.4,3051.3,3.73449164]
[1765059466414,0.002,3051.4,3051.3,4.72199164]
[1765059466650,0.002,3051.4,3051.3,4.8531652]
[1765059466810,0.002,3051.4,3051.3,1.10737356]
[1765059467135,0.002,3051.4,3051.3,4.3846652]
[1765059467832,0.002,3051.4,3051.3,3.8656652]
[1765059468036,0.002,3051.4,3051.3,4.3846652]
[1765059468517,0.002,3051.4,3051.3,10.66699499]
[1765059469131,0.002,3051.4,3051.3,6.87070335]
[1765059469452,0.002,3051.4,3051.3,7.38970335]
[1765059470247,0.002,3051.4,3051.3,10.66699499]
[1765059470826,0.002,3051.4,3051.3,6.87070335]
[1765059471060,0.465,3051.4,3051.3,6.80132979]
[1765059472850,0.465,3051.4,3051.3,6.28232979]
[1765059473167,0.002,3051.4,3051.3,10.75111554]
[1765059473673,0.002,3051.4,3051.3,10.54452143]
[1765059473963,0.002,3051.4,3051.3,11.03402143]
[1765059474173,0.002,3051.4,3051.3,10.51502143]
[1765059474359,0.002,3051.4,3051.3,11.03402143]
[1765059475864,0.002,3051.4,3051.3,10.54452143]
[1765059477067,0.002,3051.4,3051.3,10.02552143]
[1765059477260,0.002,3051.4,3051.3,10.54452143]
[1765059478070,0.002,3051.4,3051.3,10.02552143]
[1765059478267,0.4671,3051.4,3051.0,6.28232979]
[1765059478454,0.002,3051.4,3051.3,0.519]
[1765059478840,0.9414,3051.4,3051.3,0.519]
[1765059479035,0.9414,3051.4,3051.0,6.28232979]
[1765059479336,0.4651,3051.1,3051.0,9.55994368]
[1765059479564,0.002,3051.4,3051.0,10.07894368]
[1765059479753,0.002,3051.4,3051.0,10.52944368]
[1765059482042,0.002,3051.4,3051.0,13.80705757]
[1765059482670,0.002,3051.4,3051.3,6.73282979]
[1765059483170,0.002,3051.4,3051.3,10.01012143]
[1765059484640,0.002,3051.4,3051.3,10.49962143]
[1765059488749,0.002,3051.4,3051.3,9.55962143]
[1765059489161,0.002,3051.4,3051.3,10.01012143]
[1765059492378,0.002,3051.4,3051.3,10.49962143]
[1765059492952,0.002,3051.4,3051.3,10.99962143]
[1765059493152,0.002,3051.4,3051.3,12.13071954]
[1765059493364,1.50521634,3053.4,3051.3,12.13071954]
[1765059493365,0.1904,3054.2,3051.9,3.462]
[1765059493561,0.1904,3054.2,3051.8,28.151881]
[1765059493562,3.46458186,3054.2,3054.0,6.28232979]
[1765059493787,3.46458186,3054.2,3053.1,0.72559411]
[1765059493788,0.9394,3054.1,3053.8,0.52]
[1765059493987,3.27350268,3054.9,3053.8,0.52]
[1765059493988,0.1849,3054.9,3054.1,0.6312]
[1765059494156,0.1849,3057.1,3054.8,0.4505]
[1765059494157,0.1849,3055.5,3054.8,0.4505]
[1765059494501,0.1849,3055.5,3054.5,0.52]
[1765059494795,0.4743,3055.4,3054.6,0.52]
[1765059494976,0.04090314,3056.0,3054.6,0.52]
[1765059494977,0.4743,3056.0,3054.7,0.405504]
[1765059495178,0.4743,3056.0,3054.7,0.895004]
[1765059495481,0.4743,3056.0,3054.8,0.521]
[1765059495686,0.4743,3056.0,3054.9,0.521]
[1765059495687,0.39314067,3055.9,3054.9,0.521]
[1765059495885,0.86744067,3055.9,3055.1,3.27321527]
[1765059496085,4.13980712,3055.9,3055.0,3.27330953]
[1765059496294,0.4743,3055.8,3054.9,0.521]
[1765059496607,0.4651,3055.0,3054.9,0.521]
[1765059496766,0.4651,3055.0,3054.7,0.521]
[1765059496964,0.41398071,3055.7,3054.7,0.521]
[1765059497151,0.4743,3055.3,3054.7,0.521]
[1765059497895,0.4743,3055.3,3054.3,0.4895]
[1765059498096,3.74734192,3055.3,3054.6,0.521]
[1765059498295,0.37473419,3055.2,3054.6,0.521]
[1765059498488,0.84903419,3055.2,3054.6,0.521]
[1765059499314,0.65,3054.7,3054.4,0.52]
[1765059499481,0.3682,3054.6,3054.4,0.52]
[1765059499671,0.4641,3054.5,3053.7,0.4895]
[1765059499867,0.9384,3054.5,3053.8,0.52]
[1765059500071,0.9384,3054.5,3054.0,0.72559411]
[1765059500498,0.9384,3054.5,3053.8,3.79457701]
[1765059500499,0.4641,3054.5,3053.8,3.27460342]
[1765059500698,0.4999,3054.1,3053.8,3.79460733]
[1765059501004,0.65,3054.9,3053.9,1.13109811]
[1765059501200,0.65,3054.9,3054.3,0.4657]
[1765059501386,0.65,3054.9,3054.3,0.9867]
[1765059501567,1.0423237,3054.9,3054.3,0.9867]
[1765059501770,0.4546,3054.8,3054.1,0.1749]
[1765059502095,0.4546,3054.8,3054.2,3.7951452]
[1765059502306,3.72814479,3054.8,3054.2,0.521]
[1765059502504,4.15973164,3054.8,3054.1,3.44915127]
[1765059502676,4.15973164,3054.8,3054.2,0.521]
[1765059502677,0.4546,3054.7,3054.2,0.521]
[1765059502891,0.4999,3054.3,3053.9,0.521]
[1765059503089,0.4999,3054.3,3053.7,0.521]
[1765059503294,0.9545,3054.3,3053.7,3.27464316]
[1765059503605,0.9545,3054.3,3053.6,0.521]
[1765059503911,0.4546,3054.2,3053.7,0.72559411]
[1765059504089,0.6742,3053.8,3053.3,0.1593]
[1765059504292,0.3695,3053.7,3053.4,1.24659411]
[1765059504497,0.8241,3053.7,3053.4,1.24659411]
[1765059504682,3.44872174,3054.0,3053.4,1.24659411]
[1765059504683,0.1743,3054.0,3053.4,4.52163177]
[1765059505095,0.1743,3054.0,3053.4,7.27566943]
[1765059505316,0.1954,3054.2,3053.4,7.79666943]
[1765059507594,0.65,3054.2,3053.4,7.79666943]
[1765059507795,0.65,3054.4,3053.4,4.52163177]
[1765059507995,0.65,3054.4,3053.4,7.79666943]
[1765059508189,0.65,3054.4,3053.5,0.4767]
[1765059508514,0.4546,3054.3,3053.6,3.27482315]
[1765059509423,0.4546,3054.3,3053.6,6.5496463]
[1765059509585,0.1954,3054.4,3053.6,6.5496463]
[1765059509786,0.1954,3054.4,3053.6,7.0263463]
[1765059511527,0.1954,3054.4,3053.6,6.5496463]
[1765059511821,3.72835175,3054.6,3053.7,0.4767]
[1765059512028,0.37283517,3054.5,3053.8,3.79460868]
[1765059513825,0.37283517,3054.5,3053.8,4.27130868]
[1765059515120,3.64670192,3054.5,3053.8,4.27130868]
[1765059515325,4.10130192,3054.5,3053.8,0.52]
[1765059515521,1.19210709,3054.4,3053.8,0.52]
[1765059515733,1.19210709,3054.4,3053.8,3.79460776]
[1765059516421,1.19210709,3054.4,3053.8,10.06657226]
[1765059516640,0.4546,3054.4,3053.8,10.06657226]
[1765059516792,3.27378136,3054.6,3053.8,10.06657226]
[1765059516993,3.27378136,3054.6,3053.8,13.34118094]
[1765059517521,3.27378136,3054.6,3053.8,3.79460776]
[1765059517822,3.27378136,3054.6,3053.9,6.2719645]
[1765059518020,0.7002026,3054.5,3053.9,6.2719645]
[1765059518324,0.1954,3054.9,3054.2,6.2719645]
[1765059518523,0.4546,3054.8,3054.2,6.2719645]
[1765059519592,0.4546,3054.8,3054.3,3.27407261]
[1765059520227,3.46886249,3054.9,3054.3,3.27407261]
[1765059520228,0.1954,3054.9,3054.3,3.27407261]
[1765059520396,3.67186428,3054.9,3054.2,3.2741359]
[1765059520723,4.12646428,3054.9,3054.2,3.7941359]
[1765059522108,0.4546,3054.8,3054.2,0.52]
[1765059522432,0.4546,3054.8,3054.2,3.79417592]
[1765059522633,1.19868235,3054.8,3054.2,3.79417592]
[1765059522999,0.4546,3054.7,3054.2,3.27416533]
[1765059523214,0.4546,3054.7,3054.2,3.79416533]
[1765059523620,0.4999,3054.3,3053.5,9.51067679]
[1765059523897,0.3277,3054.2,3053.7,3.27471591]
[1765059524101,0.4546,3054.1,3053.8,0.72559411]
[1765059524514,0.6936,3053.9,3053.2,0.4767]
[1765059524714,0.6936,3053.9,3053.5,3.27483438]
[1765059524911,0.6936,3053.9,3053.3,3.79506526]
[1765059524912,0.6936,3053.9,3053.6,3.27473399]
[1765059525110,0.4982,3053.9,3053.6,3.27473399]
[1765059526117,0.4982,3053.9,3053.4,6.55007532]
[1765059526319,0.4982,3053.9,3053.4,7.02677532]
[1765059527236,0.4982,3053.9,3053.5,0.52]
[1765059527536,0.4982,3053.9,3053.6,0.52]
[1765059528531,0.4982,3053.9,3053.7,3.27471591]
[1765059529229,0.5248,3053.8,3053.1,0.1593]
[1765059529547,0.4546,3054.0,3053.6,3.27479195]
[1765059530234,0.1954,3054.2,3053.6,6.5496151]
[1765059530406,3.75646134,3054.5,3053.9,3.72941488]
[1765059530608,3.75646134,3054.5,3053.8,3.27456991]
[1765059530808,0.4826,3054.4,3053.9,3.27448589]
[1765059531003,0.85824613,3054.4,3053.9,3.27448589]
[1765059531310,0.4826,3054.4,3053.9,3.27448589]
[1765059531510,0.4826,3054.3,3053.9,3.27448589]
[1765059532438,3.27379775,3054.6,3053.8,3.27458469]
[1765059532955,0.4946,3054.5,3053.8,3.27458469]
[1765059533314,0.4946,3054.5,3053.8,3.79458469]
[1765059533614,0.37683978,3054.4,3053.8,3.79458469]
[1765059534039,0.4946,3054.3,3053.8,3.79458469]
[1765059534815,0.4578,3053.9,3053.8,3.79458469]
[1765059536245,0.9524,3053.9,3053.3,0.4568]
[1765059536446,1.1412,3053.9,3053.6,0.52]
[1765059536743,1.1412,3053.9,3053.5,3.27488062]
[1765059536942,1.1412,3053.9,3053.6,3.79481849]
[1765059537449,1.1412,3053.9,3053.7,3.27470805]
[1765059537656,0.37683978,3054.4,3053.6,0.52]
[1765059537657,0.1888,3054.1,3053.8,3.27460868]
[1765059538046,0.1888,3054.1,3053.7,3.27471591]
[1765059538517,0.4946,3054.2,3053.7,3.27471591]
[1765059539612,0.90914399,3054.2,3053.7,3.27471591]
[1765059539811,0.4578,3053.8,3053.6,3.79478697]
[1765059540226,0.3363,3053.7,3053.6,3.79478697]
[1765059541544,0.8309,3053.7,3053.4,10.06866999]
[1765059541847,0.1888,3053.9,3053.4,10.06869793]
[1765059542014,0.6834,3053.9,3053.4,10.06869793]
[1765059542217,0.6834,3053.9,3053.5,3.27489131]
[1765059542411,0.1888,3053.9,3053.7,6.27369226]
[1765059542722,0.4946,3054.8,3053.8,1.73019411]
[1765059542922,0.4946,3054.8,3054.6,6.27369226]
[1765059543445,0.4578,3054.7,3054.6,6.27369226]
[1765059543748,0.89992297,3054.7,3054.4,6.27369226]
[1765059544134,0.3363,3054.5,3054.4,6.27369226]
[1765059544341,0.44212297,3054.7,3054.1,0.1749]
[1765059544531,0.4946,3054.8,3054.3,3.27397959]
[1765059545244,0.4578,3054.4,3054.2,3.27414708]
[1765059546548,0.4578,3054.4,3054.2,3.27417981]
[1765059547655,0.4578,3054.4,3054.2,3.79317981]
[1765059547861,0.4578,3054.4,3054.2,0.519]
[1765059548035,0.3363,3054.3,3053.8,1.24459411]
[1765059548241,0.3375,3053.9,3053.8,3.7935914]
[1765059548437,0.5263,3053.9,3053.6,0.72559411]
[1765059548639,0.6834,3053.9,3053.7,0.519]
[1765059549154,0.4578,3053.8,3053.7,0.519]
[1765059549540,0.1888,3054.1,3053.7,1.0036]
[1765059549744,0.1888,3054.1,3053.8,0.4846]
[1765059550254,0.1888,3054.1,3053.6,0.72559411]
[1765059550255,0.4578,3053.9,3053.6,0.72559411]
[1765059550430,0.6834,3054.1,3053.6,0.72559411]
[1765059550431,0.3363,3053.8,3053.7,0.519]
[1765059550630,0.3363,3053.8,3053.7,4.51931002]
[1765059551049,0.8309,3053.8,3053.7,0.519]
[1765059551453,0.8309,3053.8,3053.1,0.6161]
[1765059551681,0.9512,3053.7,3053.3,0.72559411]
[1765059551848,0.9512,3053.7,3053.4,3.27494206]
[1765059552358,3.46311166,3054.1,3053.4,3.27494206]
[1765059552359,0.3375,3053.5,3053.4,3.27494206]
[1765059552559,0.3375,3053.5,3053.1,6.55070661]
[1765059552861,0.4946,3053.5,3053.3,0.519]
[1765059553230,0.4578,3053.4,3053.3,0.519]
[1765059553432,0.4578,3053.4,3053.0,3.27545187]
[1765059553631,7.8636937,3054.0,3053.1,0.519]
[1765059553632,0.4946,3053.6,3053.1,0.519]
[1765059553846,0.4946,3053.9,3053.1,0.519]
[1765059554174,1.82319903,3053.8,3053.1,0.519]
[1765059554662,0.4946,3053.7,3053.2,3.27525219]
[1765059555845,0.4946,3053.7,3053.2,6.55050438]
[1765059556246,3.46315174,3054.1,3053.2,6.55050438]
[1765059556458,0.4946,3053.9,3053.2,7.00730438]
[1765059556642,0.4946,3053.9,3053.2,6.55050438]
[1765059556643,0.89037517,3053.9,3053.2,6.55050438]
[1765059558550,0.4946,3053.8,3053.2,3.27525219]
[1765059558751,0.4946,3053.8,3053.2,6.55050438]
[1765059559337,0.4946,3053.8,3053.2,3.27525219]
[1765059559540,0.91108826,3053.8,3053.2,3.27525219]
[1765059560965,0.91108826,3053.8,3053.2,6.55050438]
[1765059561171,0.4946,3053.8,3053.2,6.55050438]
[1765059563067,0.4946,3053.8,3053.2,3.27525219]
[1765059563267,0.4946,3053.8,3053.3,0.519]
[1765059563765,0.4946,3053.8,3053.2,3.27525219]
[1765059563964,0.4946,3053.8,3053.3,0.519]
[1765059564165,0.67554163,3053.8,3053.3,0.519]
[1765059564472,0.67554163,3053.8,3053.5,6.27418234]
[1765059564677,0.4614,3053.7,3053.5,6.27418234]
[1765059564971,0.4686,3053.6,3053.5,6.27418234]
[1765059565372,0.93,3053.6,3053.5,6.27418234]
[1765059566147,0.4686,3053.6,3053.5,6.27418234]
[1765059569081,0.4614,3053.8,3053.5,6.27418234]
[1765059570375,3.92452135,3054.1,3053.7,6.27418234]
[1765059570675,4.69628307,3054.1,3053.7,6.27418234]
[1765059570850,0.4686,3053.8,3053.7,6.27418234]
[1765059571950,0.4686,3053.8,3053.6,3.27481608]
[1765059572150,0.4686,3053.8,3053.7,6.27418234]
[1765059574757,0.93,3053.8,3053.7,6.27418234]
[1765059576988,0.93,3053.8,3053.7,9.54889825]
[1765059577889,0.93,3053.8,3053.7,6.27418234]
[1765059580786,0.93,3053.8,3053.5,3.27486446]
[1765059580978,0.4614,3053.7,3053.5,3.27486446]
[1765059581179,0.4686,3053.6,3053.5,3.27486446]
[1765059581985,1.50361634,3054.1,3053.5,3.27486446]
[1765059582171,0.4614,3054.0,3053.6,6.27418234]
[1765059582488,1.31481634,3053.9,3052.9,0.1593]
[1765059582687,0.3585,3053.5,3052.9,0.519]
[1765059582890,0.4686,3053.0,3052.9,0.519]
[1765059583080,0.4686,3053.0,3052.7,3.27572778]
[1765059583279,0.4686,3053.0,3052.4,1.75512376]
[1765059583280,0.6538,3052.8,3052.4,0.001]
[1765059583587,0.6538,3052.8,3052.5,3.79500327]
[1765059583588,0.1852,3052.8,3052.5,3.79500327]
[1765059583791,0.4614,3052.7,3052.5,3.27594758]
[1765059584091,0.4686,3052.6,3052.5,9.55012992]
[1765059585891,0.93,3052.6,3052.5,9.55012992]
[1765059586265,0.93,3052.6,3052.4,3.79606953]
[1765059586466,0.3683,3052.5,3052.4,3.79606953]
[1765059586667,0.8297,3052.5,3052.4,3.79606953]
[1765059587085,0.8297,3052.5,3052.4,3.27706953]
[1765059587691,0.8297,3052.5,3052.4,0.001]
[1765059588070,0.1852,3052.8,3052.4,3.7482106]
[1765059588275,0.6466,3052.8,3052.6,6.27418234]
[1765059588678,0.4686,3052.7,3052.6,6.27418234]
[1765059590500,0.1852,3053.1,3052.6,10.04713131]
[1765059590705,0.6772,3053.1,3052.7,0.4934]
[1765059591199,0.492,3053.0,3052.7,0.4934]
[1765059591798,0.1852,3053.1,3052.7,0.4934]
[1765059592005,0.6772,3053.1,3052.7,0.4934]
[1765059592372,0.4728,3053.0,3052.7,3.76918471]
[1765059593774,0.4728,3053.0,3052.7,3.27578471]
[1765059594097,0.4986,3052.8,3052.7,3.27578471]
[1765059594802,0.4986,3052.8,3052.7,3.77438471]
[1765059595374,0.4728,3053.0,3052.7,3.77438471]
[1765059597471,0.4986,3052.8,3052.7,3.77438471]
[1765059597680,0.4986,3052.8,3052.7,0.4986]
[1765059597899,0.9714,3052.8,3052.6,0.519]
[1765059598082,0.3303,3052.7,3052.6,1.0176]
[1765059598274,0.3303,3052.7,3052.6,4.29349595]
[1765059598675,0.8031,3052.7,3052.6,4.29349595]
[1765059600777,0.8031,3052.7,3052.6,0.4986]
[1765059601002,0.3303,3052.7,3052.6,3.77449595]
[1765059602003,0.8031,3052.7,3052.6,3.77449595]
[1765059602403,0.8031,3052.7,3052.6,0.4986]
[1765059602774,0.8031,3052.7,3052.6,3.77449595]
[1765059602980,4.07890837,3052.7,3052.4,0.001]
[1765059603189,3.45758756,3052.9,3052.4,0.001]
[1765059603190,0.4986,3052.5,3052.4,0.001]
[1765059603709,0.9714,3052.5,3052.4,0.001]
[1765059605907,4.24740327,3052.5,3052.4,0.001]
[1765059606980,0.9714,3052.5,3052.4,0.001]
[1765059607376,5.56221961,3052.5,3052.4,0.001]
[1765059607599,3.30151072,3052.5,3052.4,0.001]
[1765059607819,0.9714,3052.5,3052.4,0.001]
[1765059609409,0.4986,3052.5,3052.4,0.001]
[1765059609595,0.182,3052.9,3052.4,6.74973536]
[1765059609914,0.4986,3052.5,3052.4,0.001]
[1765059610414,1.15274163,3052.5,3052.4,0.001]
[1765059611745,4.4287449,3052.5,3052.4,0.001]
[1765059615820,4.46969494,3052.5,3052.4,0.001]
[1765059616120,4.56969494,3052.5,3052.4,0.001]
[1765059616311,4.5287449,3052.5,3052.4,0.001]
[1765059616816,4.4287449,3052.5,3052.4,0.001]
[1765059619722,4.5287449,3052.5,3052.4,0.001]
[1765059620021,4.4287449,3052.5,3052.4,0.001]
[1765059620728,5.15433901,3052.5,3052.4,0.001]
[1765059624331,1.92353574,3052.5,3052.4,0.001]
[1765059625020,1.19794163,3052.5,3052.4,0.001]
[1765059626234,1.31481634,3052.7,3052.4,0.4936]
[1765059626434,1.31481634,3052.7,3052.5,0.4926]
[1765059637148,1.31481634,3052.7,3052.4,0.001]
[1765059637746,4.59063185,3052.7,3052.4,0.001]
[1765059638463,5.07923185,3052.7,3052.4,0.001]
[1765059638668,1.31481634,3052.5,3052.4,0.001]
[1765059640246,2.51282116,3052.7,3052.4,0.001]
[1765059640752,5.78862908,3052.7,3052.4,0.001]
[1765059641160,5.30002908,3052.7,3052.4,0.001]
[1765059641566,5.78862908,3052.7,3052.4,0.001]
[1765059641777,0.4705,3052.5,3052.4,0.001]
[1765059642181,0.57886291,3052.6,3052.4,0.001]
[1765059642496,1.06746291,3052.6,3052.4,0.001]
[1765059644952,0.4886,3052.6,3052.4,0.001]
[1765059648391,0.4705,3052.5,3052.4,0.001]
[1765059649288,0.9591,3052.5,3052.4,0.001]
[1765059649670,0.4705,3052.5,3052.4,0.001]
[1765059650498,2.02422116,3052.7,3052.4,0.001]
[1765059651094,2.49642116,3052.7,3052.4,0.001]
[1765059655500,0.77934212,3052.6,3052.4,0.001]
[1765059656472,0.30144212,3052.6,3052.4,0.001]
[1765059658301,0.77934212,3052.6,3052.4,0.001]
[1765059659310,0.4909,3052.5,3052.4,0.001]
[1765059660625,1.80571634,3052.5,3052.4,0.001]
[1765059660823,6.01370761,3052.5,3052.4,0.001]
[1765059663205,6.53170761,3052.5,3052.4,0.001]
[1765059663403,6.49075757,3052.5,3052.4,0.001]
[1765059667227,0.90403796,3052.5,3052.4,0.001]
[1765059667527,1.42203796,3052.5,3052.4,0.001]
[1765059667720,2.7368543,3052.5,3052.4,0.001]
[1765059670030,2.2188543,3052.5,3052.4,0.001]
[1765059675809,1.7279543,3052.5,3052.4,0.001]
[1765059676815,1.7279543,3052.5,3052.4,0.4944]
[1765059679444,2.2188543,3052.5,3052.4,0.001]
[1765059679813,2.6967543,3052.5,3052.4,0.001]
[1765059683927,2.2188543,3052.5,3052.4,0.001]
[1765059685143,2.7133543,3052.5,3052.4,0.001]
[1765059687086,5.98935757,3052.5,3052.4,0.001]
[1765059687555,6.03030761,3052.5,3052.4,0.001]
[1765059689691,6.13030761,3052.5,3052.4,0.001]
[1765059689988,7.26140572,3052.5,3052.4,0.001]
[1765059690188,7.22045568,3052.5,3052.4,0.001]
[1765059690888,7.35165505,3052.5,3052.4,0.001]
[1765059697700,16.84371805,3052.5,3052.4,0.001]
[1765059697892,7.86965505,3052.5,3052.4,0.001]
[1765059700007,7.35165505,3052.5,3052.4,0.001]